lending/lending_fUSD_20260124
["ID","MTS","AMOUNT","RATE_DAILY","PERIOD"]
[403216120,1769268644033,-500.0,0.00016438,2]
[403216122,1769268644042,-500.0,0.00016438,2]
[403216124,1769268644051,-500.0,0.00016438,2]
[403216126,1769268644064,-500.0,0.00016438,2]
[403216128,1769268644073,-500.0,0.00016438,2]
[403216130,1769268644082,-500.0,0.00016438,2]
[403216132,1769268644092,-500.0,0.00016438,2]
[403216134,1769268644102,-500.0,0.00016438,2]
[403216136,1769268644111,-500.0,0.00016438,2]
[403216138,1769268644121,-500.0,0.00016438,2]
[403216140,1769268644130,-500.0,0.00016438,2]
[403216142,1769268644139,-500.0,0.00016438,2]
[403216144,1769268644148,-413.48133604,0.00016438,2]
[403216146,1769268644157,-500.0,0.00016438,2]
[403216148,1769268644167,-500.0,0.00016438,2]
[403216150,1769268644176,-1179.38248376,0.00016438,2]
[403216152,1769268644185,-1179.38248376,0.00016438,2]
[403216154,1769268644194,-1179.38248376,0.00016438,2]
[403216156,1769268644203,-1179.38248376,0.00016438,2]
[403216158,1769268644212,-1179.38248376,0.00016438,2]
[403216160,1769268644222,-1179.38248376,0.00016438,2]
[403216162,1769268644231,-1179.38248376,0.00016438,2]
[403216164,1769268644240,-1179.38248376,0.00016438,2]
[403216167,1769268644250,-1179.38248376,0.00016438,2]
[403216169,1769268644260,-1179.38248376,0.00016438,2]
[403216171,1769268644271,-1179.38248376,0.00016438,2]
[403216173,1769268644281,-1179.38248376,0.00016438,2]
[403216175,1769268644290,-1179.38248376,0.00016438,2]
[403216177,1769268644300,-1179.38248376,0.00016438,2]
[403216179,1769268644310,-1179.38248376,0.00016438,2]
[403216181,1769268644321,-1179.38248376,0.00016438,2]
[403216183,1769268644331,-158.58207375,0.00016438,2]
[403216185,1769268644340,-1179.38248376,0.00016438,2]
[403216187,1769268644350,-1179.38248376,0.00016438,2]
[403216189,1769268644359,-1179.38248376,0.00016438,2]
[403216191,1769268644368,-1179.38248376,0.00016438,2]
[403216193,1769268644377,-1179.38248376,0.00016438,2]
[403216195,1769268644386,-1179.38248376,0.00016438,2]
[403216197,1769268644397,-1179.38248376,0.00016438,2]
[403216199,1769268644407,-1179.38248376,0.00016438,2]
[403216201,1769268644416,-1179.38248376,0.00016438,2]
[403216203,1769268644426,-1179.38248376,0.00016438,2]
[403216205,1769268644435,-1179.38248376,0.00016438,2]
[403216207,1769268644448,-1179.38248376,0.00016438,2]
[403216209,1769268644470,-1179.38248376,0.00016438,2]
[403216211,1769268644490,-1179.38248376,0.00016438,2]
[403216213,1769268644514,-1179.38248376,0.00016438,2]
[403216215,1769268644536,-1179.38248376,0.00016438,2]
[403216216,1769268644558,-1179.38248376,0.00016438,2]
[403216217,1769268644580,-1179.38248376,0.00016438,2]
[403216218,1769268644602,-1179.38248376,0.00016438,2]
[403216219,1769268644625,-1179.38248376,0.00016438,2]
[403216220,1769268644645,-1179.38248376,0.00016438,2]
[403216221,1769268644655,-1179.38248376,0.00016438,2]
[403216222,1769268644665,-1179.38248376,0.00016438,2]
[403216223,1769268644673,-1179.38248376,0.00016438,2]
[403216224,1769268644682,-1179.38248376,0.00016438,2]
[403216225,1769268644691,-1179.38248376,0.00016438,2]
[403216226,1769268644700,-1179.38248376,0.00016438,2]
[403216228,1769268644710,-1140.0697343,0.00016438,2]
[403216230,1769268644720,-1140.0697343,0.00016438,2]
[403216232,1769268644729,-1140.0697343,0.00016438,2]
[403216234,1769268644738,-1140.0697343,0.00016438,2]
[403216236,1769268644747,-1140.0697343,0.00016438,2]
[403216238,1769268644757,-1140.0697343,0.00016438,2]
[403216240,1769268644766,-1140.0697343,0.00016438,2]
[403216242,1769268644775,-1140.0697343,0.00016438,2]
[403216244,1769268644784,-1140.0697343,0.00016438,2]
[403216246,1769268644794,-1140.0697343,0.00016438,2]
[403216248,1769268644803,-1140.0697343,0.00016438,2]
[403216250,1769268644812,-1140.0697343,0.00016438,2]
[403216252,1769268644821,-1140.0697343,0.00016438,2]
[403216254,1769268644831,-1140.0697343,0.00016438,2]
[403216256,1769268644840,-1140.0697343,0.00016438,2]
[403216257,1769268644849,-1140.0697343,0.00016438,2]
[403216259,1769268644858,-1140.0697343,0.00016438,2]
[403216261,1769268644868,-1140.0697343,0.00016438,2]
[403216263,1769268644877,-1140.0697343,0.00016438,2]
[403216265,1769268644886,-1140.0697343,0.00016438,2]
[403216267,1769268644895,-1140.0697343,0.00016438,2]
[403216269,1769268644904,-1140.0697343,0.00016438,2]
[403216271,1769268644913,-1140.0697343,0.00016438,2]
[403216273,1769268644922,-1140.0697343,0.00016438,2]
[403216275,1769268644931,-1140.0697343,0.00016438,2]
[403216277,1769268644940,-1140.0697343,0.00016438,2]
[403216279,1769268644950,-1140.06973422,0.00016438,2]
[403216281,1769268644959,-957.33,0.00016438,2]
[403216283,1769268644967,-957.33,0.00016438,2]
[403216285,1769268644977,-957.33,0.00016438,2]
[403216287,1769268644986,-957.33,0.00016438,2]
[403216289,1769268644995,-957.33,0.00016438,2]
[403216291,1769268645004,-957.33,0.00016438,2]
[403216293,1769268645013,-957.33,0.00016438,2]
[403216295,1769268645022,-957.33,0.00016438,2]
[403216297,1769268645032,-957.33,0.00016438,2]
[403216299,1769268645042,-957.33,0.00016438,2]
[403216301,1769268645051,-957.33,0.00016438,2]
[403216303,1769268645060,-957.33,0.00016438,2]
[403216305,1769268645069,-957.33,0.00016438,2]
[403216307,1769268645078,-957.33,0.00016438,2]
[403216309,1769268645087,-957.33,0.00016438,2]
[403216311,1769268645096,-957.33,0.00016438,2]
[403216313,1769268645105,-957.33,0.00016438,2]
[403216315,1769268645114,-957.33,0.00016438,2]
[403216317,1769268645123,-957.33,0.00016438,2]
[403216319,1769268645132,-957.33,0.00016438,2]
[403216321,1769268645142,-957.33,0.00016438,2]
[403216323,1769268645151,-957.33,0.00016438,2]
[403216325,1769268645160,-957.33,0.00016438,2]
[403216327,1769268645169,-957.4341589,0.00016438,2]
[403216329,1769268645179,-800.0,0.00016438,2]
[403216331,1769268645188,-151.0,0.00016438,2]
[403216333,1769268645198,-165.27,0.0001644,2]
[403216335,1769268645207,-150.0,0.00016492,2]
[403216338,1769268645220,-1706.4798288,0.00016494,2]
[403216340,1769268645229,-1000.0,0.000165,2]
[403216342,1769268645239,-1000.0,0.00016515,2]
[403216344,1769268645248,-551.95368049,0.00016527,2]
[403216346,1769268645257,-178.0,0.00016547,2]
[403216348,1769268645266,-170.42,0.00016578,2]
[403216349,1769268645275,-3967.0,0.00016614,2]
[403216351,1769268645284,-166.66,0.00016627,2]
[403216353,1769268645294,-2368.5,0.00016711,2]
[403216356,1769268645303,-216.85110539,0.00016714,2]
[403216357,1769268645313,-857.0,0.0001672,2]
[403216359,1769268645325,-152.0,0.00016747,9]
[403216362,1769268645335,-468.53,0.00016756,2]
[403216363,1769268645344,-300.0,0.00016756,2]
[403216365,1769268645355,-2000.0,0.000168,2]
[403216367,1769268645365,-500.0,0.00016802,2]
[403216369,1769268645375,-2368.5,0.00016828,2]
[403216371,1769268645384,-918.64355495,0.00016841,2]
[403216373,1769268645394,-187.78006525,0.00016841,2]
[403216375,1769268645404,-500.0,0.00016853,2]
[403216377,1769268645413,-393.95,0.00016866,2]
[403216379,1769268645423,-3967.0,0.00016889,2]
[403216381,1769268645432,-1000.0,0.000169,2]
[403216383,1769268645441,-2317.0,0.0001693,2]
[403216385,1769268645451,-2368.5,0.00016945,2]
[403216387,1769268645460,-4609.0,0.00016945,2]
[403216389,1769268645469,-5888.95973662,0.00016947,5]
[403216391,1769268645478,-3967.0,0.00016961,2]
[403216393,1769268645487,-1500.0,0.00016968,2]
[403216395,1769268645498,-1500.0,0.00016968,2]
[403216397,1769268645507,-1500.0,0.00016968,2]
[403216399,1769268645516,-1500.0,0.00016968,2]
[403216401,1769268645525,-1606.81558128,0.00016968,2]
[403216403,1769268645535,-573.98879249,0.00016968,2]
[403216405,1769268645544,-1500.0,0.00016968,2]
[403216407,1769268645553,-1500.0,0.00016968,2]
[403216409,1769268645563,-1500.0,0.00016968,2]
[403216411,1769268645572,-1500.0,0.00016968,2]
[403216413,1769268645581,-1502.72708763,0.00016968,2]
[403216415,1769268645590,-1500.0,0.00016968,2]
[403216417,1769268645600,-1500.0,0.00016968,2]
[403216419,1769268645609,-200.0,0.00016983,2]
[403216421,1769268645619,-197.15,0.0001699,2]
[403216423,1769268645628,-218519.38322513,0.00017,2]
[403216425,1769268645637,-160.0,0.00017,2]
[403216427,1769268645647,-3207.48934641,0.00017,2]
[403216429,1769268645657,-900.0,0.00017004,2]
[403216431,1769268645666,-3247.44,0.00017038,2]
[403216433,1769268645676,-1683.0,0.00017043,2]
[403216435,1769268645685,-8405.06700136,0.00017053,2]
[403216437,1769268645695,-2368.5,0.00017063,2]
[403216439,1769268645704,-3967.0,0.00017065,2]
[403216441,1769268645713,-152.0,0.00017094,10]
[403216443,1769268645723,-446.04265821,0.000171,2]
[403216445,1769268645733,-1000.0,0.00017112,2]
[403216447,1769268645742,-166.66,0.00017112,2]
[403216449,1769268645752,-334.5472959,0.00017114,2]
[403216452,1769268645762,-200.0,0.00017114,2]
[403216455,1769268645771,-175.49,0.00017146,2]
[403216458,1769268645780,-2461.78,0.00017178,2]
[403216461,1769268645790,-403.57,0.00017178,2]
[403216464,1769268645800,-179.89,0.00017178,2]
[403216466,1769268645810,-1117.3,0.00017178,2]
[403216468,1769268645819,-468.53,0.00017178,2]
[403216470,1769268645828,-179.89,0.00017178,2]
[403216472,1769268645837,-355.79,0.00017178,2]
[403216474,1769268645847,-150.0,0.00017178,2]
[403216476,1769268645856,-179.89,0.00017178,2]
[403216478,1769268645865,-2368.5,0.0001718,2]
[403216480,1769268645874,-1706.4798288,0.00017197,2]
[403216482,1769268645884,-749.41,0.0001726,2]
[403216484,1769268645892,-800.0,0.0001726,2]
[403216486,1769268645902,-800.0,0.0001726,2]
[403216488,1769268645911,-800.0,0.0001726,2]
[403216490,1769268645919,-800.0,0.0001726,2]
[403216492,1769268645929,-800.0,0.0001726,2]
[403216494,1769268645938,-800.0,0.0001726,2]
[403216496,1769268645948,-800.0,0.0001726,2]
[403216498,1769268645957,-800.0,0.0001726,2]
[403216500,1769268645966,-800.0,0.0001726,2]
[403216502,1769268645975,-800.0,0.0001726,2]
[403216504,1769268645984,-800.0,0.0001726,2]
[403216506,1769268645993,-800.0,0.0001726,2]
[403216508,1769268646003,-800.0,0.0001726,2]
[403216510,1769268646012,-800.0,0.0001726,2]
[403216512,1769268646021,-800.0,0.0001726,2]
[403216514,1769268646031,-800.0,0.0001726,2]
[403216516,1769268646041,-800.0,0.0001726,2]
[403216519,1769268646051,-800.0,0.0001726,2]
[403216521,1769268646060,-800.0,0.0001726,2]
[403216523,1769268646070,-800.0,0.0001726,2]
[403216525,1769268646080,-800.0,0.0001726,2]
[403216526,1769268646089,-800.0,0.0001726,2]
[403216529,1769268646100,-800.0,0.0001726,2]
[403216530,1769268646110,-800.0,0.0001726,2]
[403216532,1769268646120,-800.0,0.0001726,2]
[403216534,1769268646129,-800.0,0.0001726,2]
[403216537,1769268646139,-800.0,0.0001726,2]
[403216538,1769268646148,-800.0,0.0001726,2]
[403216541,1769268646158,-800.0,0.0001726,2]
[403216543,1769268646167,-800.0,0.0001726,2]
[403216545,1769268646176,-800.0,0.0001726,2]
[403216547,1769268646185,-800.0,0.0001726,2]
[403216549,1769268646195,-800.0,0.0001726,2]
[403216551,1769268646203,-800.0,0.0001726,2]
[403216553,1769268646212,-800.0,0.0001726,2]
[403216555,1769268646222,-800.0,0.0001726,2]
[403216557,1769268646231,-800.0,0.0001726,2]
[403216559,1769268646239,-800.0,0.0001726,2]
[403216561,1769268646249,-800.0,0.0001726,2]
[403216563,1769268646260,-800.0,0.0001726,2]
[403216565,1769268646269,-800.0,0.0001726,2]
[403216567,1769268646278,-800.0,0.0001726,2]
[403216569,1769268646287,-800.0,0.0001726,2]
[403216571,1769268646296,-800.0,0.0001726,2]
[403216573,1769268646305,-800.0,0.0001726,2]
[403216575,1769268646315,-800.0,0.0001726,2]
[403216577,1769268646327,-800.0,0.0001726,2]
[403216578,1769268646336,-452.0,0.0001726,2]
[403216580,1769268646345,-500.0,0.0001726,2]
[403216582,1769268646355,-617.0,0.0001726,2]
[403216584,1769268646365,-200.0,0.0001726,2]
[403216586,1769268646374,-200.0,0.0001726,2]
[403216589,1769268646383,-200.0,0.0001726,2]
[403216590,1769268646392,-200.0,0.0001726,2]
[403216592,1769268646401,-200.0,0.0001726,2]
[403216594,1769268646412,-200.0,0.0001726,2]
[403216596,1769268646421,-200.0,0.0001726,2]
[403216599,1769268646431,-200.0,0.0001726,2]
[403216601,1769268646440,-200.0,0.0001726,2]
[403216603,1769268646449,-200.0,0.0001726,2]
[403216604,1769268646459,-200.0,0.0001726,2]
[403216606,1769268646468,-200.0,0.0001726,2]
[403216608,1769268646477,-200.0,0.0001726,2]
[403216611,1769268646486,-200.0,0.0001726,2]
[403216612,1769268646495,-200.0,0.0001726,2]
[403216615,1769268646507,-200.0,0.0001726,2]
[403216616,1769268646516,-200.0,0.0001726,2]
[403216619,1769268646526,-200.0,0.0001726,2]
[403216620,1769268646535,-200.0,0.0001726,2]
[403216623,1769268646544,-200.0,0.0001726,2]
[403216625,1769268646554,-200.0,0.0001726,2]
[403216627,1769268646563,-200.0,0.0001726,2]
[403216628,1769268646572,-200.0,0.0001726,2]
[403216630,1769268646582,-200.0,0.0001726,2]
[403216633,1769268646592,-200.0,0.0001726,2]
[403216635,1769268646601,-200.0,0.0001726,2]
[403216636,1769268646611,-200.0,0.0001726,2]
[403216639,1769268646621,-200.0,0.0001726,2]
[403216641,1769268646631,-200.0,0.0001726,2]
[403216642,1769268646641,-200.0,0.0001726,2]
[403216645,1769268646651,-200.0,0.0001726,2]
[403216647,1769268646660,-200.0,0.0001726,2]
[403216648,1769268646670,-200.0,0.0001726,2]
[403216650,1769268646679,-200.0,0.0001726,2]
[403216652,1769268646689,-200.0,0.0001726,2]
[403216654,1769268646698,-200.0,0.0001726,2]
[403216657,1769268646708,-188.0,0.0001726,2]
[403216659,1769268646724,-1000.0,0.0001726,2]
[403216661,1769268646746,-6902.7891,0.00017278,2]
[403216662,1769268646768,-159.59843399,0.00017287,2]
[403216665,1769268646790,-2368.5,0.00017297,2]
[403216667,1769268646812,-1000.0,0.000173,2]
[403216668,1769268646833,-194.93473074,0.00017333,2]
[403216670,1769268646855,-3648.72569275,0.00017342,2]
[403216672,1769268646877,-1333.0,0.00017357,2]
[403216675,1769268646899,-162.038,0.00017357,2]
[403216677,1769268646921,-4830.0,0.00017357,2]
[403216679,1769268646932,-1252.7,0.00017377,2]
[403216681,1769268646942,-1252.7,0.00017377,2]
[403216683,1769268646951,-1252.7,0.00017377,2]
[403216684,1769268646960,-1252.7,0.00017377,2]
[403216687,1769268646970,-1252.7,0.00017377,2]
[403216688,1769268646979,-1252.7,0.00017377,2]
[403216691,1769268646988,-1252.7,0.00017377,2]
[403216692,1769268646997,-1252.7,0.00017377,2]
[403216694,1769268647006,-1252.7,0.00017377,2]
[403216696,1769268647016,-1252.7,0.00017377,2]
[403216698,1769268647026,-2116.81,0.00017377,2]
[403216700,1769268647035,-952.63336648,0.00017389,2]
[403216702,1769268647045,-194.72792766,0.00017389,2]
[403216704,1769268647054,-2000.0,0.000174,2]
[403216706,1769268647064,-286.14,0.00017401,2]
[403216708,1769268647073,-2368.5,0.00017414,2]
[403216710,1769268647082,-152.734551,0.00017419,2]
[403216712,1769268647091,-150.0,0.00017427,2]
[403216714,1769268647100,-150.0,0.00017427,2]
[403216716,1769268647109,-156.86309582,0.00017427,2]
[403216718,1769268647118,-500.0,0.00017427,2]
[403216719,1769268647127,-500.0,0.00017427,2]
[403216721,1769268647136,-500.0,0.00017427,2]
[403216724,1769268647146,-500.0,0.00017427,2]
[403216726,1769268647155,-749.41,0.00017427,2]
[403216728,1769268647164,-749.41,0.00017427,2]
[403216730,1769268647174,-494195.7016398,0.00017428,2]
[403216732,1769268647183,-152.0,0.00017442,11]
[403216734,1769268647192,-151.47,0.00017452,2]
[403216736,1769268647202,-150.0,0.00017452,2]
[403216738,1769268647213,-150.0,0.00017452,2]
[403216740,1769268647222,-245.0,0.00017453,2]
[403216742,1769268647231,-3648.7256927,0.00017454,2]
[403216744,1769268647240,-194.93473072,0.00017475,2]
[403216746,1769268647249,-8405.06700136,0.00017477,2]
[403216748,1769268647258,-197.15,0.00017486,2]
[403216750,1769268647268,-1000.0,0.000175,2]
[403216752,1769268647277,-9577.0107416,0.000175,2]
[403216754,1769268647286,-1189.38769854,0.000175,3]
[403216756,1769268647295,-2317.0,0.00017508,2]
[403216758,1769268647305,-500.0,0.00017516,2]
[403216760,1769268647315,-1046.22489308,0.00017516,2]
[403216762,1769268647326,-2000.0,0.00017516,2]
[403216763,1769268647336,-2000.0,0.00017516,2]
[403216765,1769268647345,-2000.0,0.00017516,2]
[403216767,1769268647354,-2000.0,0.00017516,2]
[403216769,1769268647365,-1007.7084502,0.00017516,2]
[403216771,1769268647374,-2000.0,0.00017516,2]
[403216773,1769268647383,-2000.0,0.00017516,2]
[403216775,1769268647393,-2000.0,0.00017516,2]
[403216777,1769268647403,-2000.0,0.00017516,2]
[403216779,1769268647412,-2368.5,0.00017531,2]
[403216782,1769268647422,-769.22282917,0.00017534,2]
[403216784,1769268647430,-1000.0,0.00017534,2]
[403216786,1769268647440,-997.17336156,0.00017555,2]
[403216788,1769268647450,-3648.7256927,0.00017565,2]
[403216789,1769268647462,-867.75,0.0001757,2]
[403216791,1769268647471,-175.49,0.00017573,2]
[403216793,1769268647481,-250.0,0.00017616,2]
[403216795,1769268647490,-4840.22232773,0.00017616,2]
[403216797,1769268647500,-12773.42330268,0.00017616,2]
[403216800,1769268647509,-22533.83278816,0.00017616,2]
[403216801,1769268647519,-33709.26619106,0.00017616,2]
[403216804,1769268647528,-45609.8346,0.00017616,2]
[403216806,1769268647538,-194.93473072,0.00017617,2]
[403216808,1769268647547,-393.95,0.00017633,2]
[403216810,1769268647556,-200.0,0.00017634,2]
[403216812,1769268647565,-263.31938823,0.00017637,2]
[403216813,1769268647575,-5404.10438685,0.0001764,2]
[403216815,1769268647587,-2368.5,0.00017648,2]
[403216817,1769268647596,-3648.7256927,0.00017677,2]
[403216819,1769268647606,-151.3661,0.000177,2]
[403216821,1769268647616,-3396.08042674,0.000177,2]
[403216822,1769268647625,-2000.0,0.000177,2]
[403216824,1769268647634,-1000.0,0.00017709,2]
[403216826,1769268647643,-450.79259668,0.0001772,2]
[403216828,1769268647653,-500.0,0.00017726,2]
[403216830,1769268647662,-929.63069455,0.0001773,2]
[403216832,1769268647671,-172.8753019,0.00017731,3]
[403216833,1769268647681,-1600.0,0.00017738,2]
[403216835,1769268647690,-450.79259662,0.0001775,2]
[403216837,1769268647700,-749.41,0.00017752,2]
[403216839,1769268647710,-2317.0,0.00017758,2]
[403216841,1769268647719,-194.93473072,0.00017758,2]
[403216842,1769268647729,-2368.5,0.00017766,2]
[403216844,1769268647738,-450.79259662,0.0001778,2]
[403216846,1769268647748,-3648.7256927,0.00017788,2]
[403216848,1769268647757,-152.0,0.00017789,12]
[403216849,1769268647766,-37931.11459609,0.000178,2]
[403216851,1769268647775,-1000.0,0.00017808,2]
[403216853,1769268647785,-450.79259662,0.0001781,2]
[403216855,1769268647795,-3247.44,0.00017813,2]
[403216857,1769268647804,-2000.0,0.0001782,2]
[403216859,1769268647814,-2000.0,0.0001782,2]
[403216861,1769268647823,-231.38369303,0.0001782,2]
[403216862,1769268647832,-5800.0,0.00017823,2]
[403216864,1769268647841,-203.347,0.00017824,2]
[403216866,1769268647851,-2699.611,0.00017824,2]
[403216868,1769268647860,-311.60217601,0.00017829,2]
[403216870,1769268647869,-500.0,0.00017829,2]
[403216872,1769268647879,-96953.83922531,0.0001783,2]
[403216873,1769268647888,-5800.0,0.00017832,2]
[403216875,1769268647897,-450.79259662,0.0001784,2]
[403216897,1769268648126,-5800.0,0.00017841,2]
[403216899,1769268648135,-867.75,0.00017844,2]
[403216901,1769268648145,-5800.0,0.00017849,2]
[403216903,1769268648154,-200.0,0.00017855,2]
[403216905,1769268648163,-200.0,0.00017856,2]
[403216907,1769268648173,-5800.0,0.00017858,2]
[403216908,1769268648182,-151.0,0.00017862,2]
[403216910,1769268648191,-2317.0,0.00017866,2]
[403216912,1769268648200,-5800.0,0.00017866,2]
[403216914,1769268648209,-450.79259662,0.0001787,2]
[403216916,1769268648219,-500.0,0.00017873,2]
[403216918,1769268648227,-25000.0,0.00017874,3]
[403216920,1769268648237,-5800.0,0.00017874,2]
[403216922,1769268648246,-2317.0,0.00017876,2]
[403216924,1769268648255,-749.41,0.00017882,2]
[403216925,1769268648266,-25000.0,0.00017882,3]
[403216927,1769268648275,-25000.0,0.00017882,3]
[403216929,1769268648285,-2368.5,0.00017883,2]
[403216931,1769268648294,-5800.0,0.00017883,2]
[403216932,1769268648303,-25000.0,0.00017891,3]
[403216934,1769268648312,-25000.0,0.00017891,3]
[403216936,1769268648323,-5800.0,0.00017891,2]
[403216937,1769268648332,-200.0,0.00017893,2]
[403216938,1769268648341,-25000.0,0.000179,3]
[403216940,1769268648351,-10000.0,0.000179,2]
[403216942,1769268648360,-450.79259662,0.000179,2]
[403216944,1769268648370,-194.93473072,0.000179,2]
[403216946,1769268648379,-25000.0,0.000179,3]
[403216948,1769268648388,-1000.0,0.000179,2]
[403216949,1769268648397,-1000.0,0.000179,3]
[403216951,1769268648406,-8405.06700136,0.000179,2]
[403216953,1769268648415,-5800.0,0.000179,2]
[403216955,1769268648424,-7609.85651561,0.000179,3]
[403216956,1769268648433,-1706.4798288,0.000179,2]
[403216958,1769268648442,-627.35792608,0.000179,2]
[403216959,1769268648451,-150.0,0.000179,2]
[403216961,1769268648460,-13995.31137832,0.000179,2]
[403216963,1769268648470,-549.64135156,0.000179,2]
[403216965,1769268648479,-3648.7256927,0.000179,2]
[403216967,1769268648488,-5282.0,0.000179,2]
[403216969,1769268648497,-987.88080104,0.00017937,2]
[403216971,1769268648506,-201.93286099,0.00017937,2]
[403216973,1769268648516,-500.0,0.0001797,2]
[403216974,1769268648526,-1000.0,0.0001797,2]
[403216976,1769268648535,-500.0,0.0001797,2]
[403216978,1769268648545,-1000.0,0.0001797,2]
[403216980,1769268648554,-500.0,0.0001797,2]
[403216982,1769268648563,-1000.0,0.0001797,2]
[403216984,1769268648572,-500.0,0.0001797,2]
[403216985,1769268648581,-1000.0,0.0001797,2]
[403216987,1769268648591,-500.0,0.0001797,2]
[403216989,1769268648600,-1000.0,0.0001797,2]
[403216991,1769268648609,-500.0,0.0001797,2]
[403216992,1769268648618,-1000.0,0.0001797,2]
[403216994,1769268648628,-601.31337833,0.0001797,2]
[403216996,1769268648637,-1425.13914229,0.0001797,2]
[403216998,1769268648646,-500.0,0.00017972,2]
[403217000,1769268648655,-500.0,0.00017972,2]
[403217001,1769268648665,-15055.0,0.00017973,2]
[403217003,1769268648674,-500.0,0.00017973,2]
[403217005,1769268648683,-500.0,0.00017973,2]
[403217007,1769268648693,-500.0,0.00017973,2]
[403217009,1769268648702,-162.86883444,0.00017973,2]
[403217010,1769268648711,-500.0,0.00017973,2]
[403217012,1769268648720,-500.0,0.00017973,2]
[403217014,1769268648728,-500.0,0.00017973,2]
[403217016,1769268648738,-500.0,0.00017973,2]
[403217017,1769268648747,-500.0,0.00017973,2]
[403217019,1769268648756,-500.0,0.00017973,2]
[403217021,1769268648766,-500.0,0.00017973,2]
[403217023,1769268648775,-500.0,0.00017973,2]
[403217025,1769268648784,-500.0,0.00017973,2]
[403217026,1769268648794,-500.0,0.00017973,2]
[403217028,1769268648803,-500.0,0.00017973,2]
[403217030,1769268648813,-500.0,0.00017973,2]
[403217032,1769268648822,-521.52144255,0.00017973,2]
[403217034,1769268648831,-500.0,0.00017973,2]
[403217035,1769268648840,-500.0,0.00017973,2]
[403217037,1769268648850,-161.29695591,0.00017973,2]
[403217039,1769268648859,-208.11665623,0.00017973,2]
[403217041,1769268648869,-558.82608128,0.00017973,2]
[403217043,1769268648878,-150.0,0.00017973,2]
[403217045,1769268648887,-500.0,0.00017973,2]
[403217047,1769268648897,-500.0,0.00017973,2]
[403217048,1769268648907,-500.0,0.00017973,2]
[403217050,1769268648916,-163.10376799,0.00017973,2]
[403217052,1769268648926,-336.33747242,0.00017973,2]
[403217054,1769268648934,-335.93123339,0.00017973,2]
[403217056,1769268648944,-500.0,0.00017973,2]
[403217058,1769268648953,-160.04994992,0.00017973,2]
[403217060,1769268648962,-500.0,0.00017973,2]
[403217062,1769268648971,-160.95253726,0.00017973,2]
[403217063,1769268648981,-160.04899722,0.00017973,2]
[403217065,1769268648990,-160.03318119,0.00017973,2]
[403217067,1769268648999,-500.0,0.00017973,2]
[403217069,1769268649009,-158.06916035,0.00017973,2]
[403217071,1769268649018,-500.0,0.00017973,2]
[403217073,1769268649027,-160.03828545,0.00017973,2]
[403217075,1769268649037,-163.215227,0.00017973,2]
[403217077,1769268649047,-160.0507877,0.00017973,2]
[403217079,1769268649056,-500.0,0.00017973,2]
[403217080,1769268649065,-160.05079201,0.00017973,2]
[403217082,1769268649074,-500.0,0.00017973,2]
[403217084,1769268649083,-500.0,0.00017973,2]
[403217086,1769268649093,-500.0,0.00017973,2]
[403217088,1769268649103,-500.0,0.00017973,2]
[403217090,1769268649112,-500.0,0.00017973,2]
[403217091,1769268649122,-500.0,0.00017973,2]
[403217093,1769268649131,-161.20666181,0.00017973,2]
[403217095,1769268649140,-300.0,0.00017973,2]
[403217097,1769268649149,-500.0,0.00017973,2]
[403217099,1769268649158,-333.14308792,0.00017973,2]
[403217100,1769268649167,-150.87644931,0.00017973,2]
[403217102,1769268649177,-150.0,0.00017973,2]
[403217104,1769268649186,-500.0,0.00017973,2]